fUST/lending_fUST_20250412
["ID","MTS","AMOUNT","RATE_DAILY","PERIOD"]
[357837864,1744463439396,-1707.159731,0.00022988,2]
[357837865,1744463439406,-181.239584,0.00022988,7]
[357837866,1744463439416,-1707.159731,0.00022988,2]
[357837867,1744463439425,-181.239584,0.00022988,7]
[357837868,1744463439436,-1707.159731,0.00022988,2]
[357837869,1744463439447,-181.239584,0.00022988,7]
[357837870,1744463439457,-1707.159731,0.00022988,2]
[357837871,1744463439467,-181.239584,0.00022988,7]
[357837872,1744463439478,-1707.159731,0.00022988,2]
[357837873,1744463439704,-181.239584,0.00022988,7]
[357837874,1744463439724,-1707.159731,0.00022988,2]
[357837875,1744463439734,-181.239584,0.00022988,7]
[357837876,1744463439745,-1707.159731,0.00022988,2]
[357837877,1744463439755,-1707.159731,0.00022988,2]
[357837878,1744463439765,-181.239584,0.00022988,7]
[357837879,1744463439775,-1707.159731,0.00022988,2]
[357837880,1744463439785,-181.239584,0.00022988,7]
[357837881,1744463439795,-181.239584,0.00022988,7]
[357837882,1744463439805,-1707.159731,0.00022988,2]
[357837883,1744463439815,-1707.159731,0.00022988,2]
[357837884,1744463439825,-181.239584,0.00022988,7]
[357837885,1744463439835,-1707.159731,0.00022988,2]
[357837886,1744463439845,-181.239584,0.00022988,7]
[357837887,1744463439855,-181.239584,0.00022988,7]
[357837889,1744463439866,-1707.159731,0.00022988,2]
[357837891,1744463439876,-181.239584,0.00022988,7]
[357837893,1744463439885,-181.239584,0.00022988,7]
[357837895,1744463439896,-1707.15973623,0.00022988,2]
[357837897,1744463439906,-181.239584,0.00022988,7]
[357837899,1744463439917,-181.239584,0.00022988,7]
[357837902,1744463439927,-181.239584,0.00022988,7]
[357837904,1744463439938,-181.239576,0.00022988,7]
[357837906,1744463439949,-151.0,0.00022989,7]
[357837908,1744463439961,-151.0,0.00022989,7]
[357837910,1744463439970,-151.0,0.00022989,7]
[357837912,1744463439980,-151.0,0.00022989,7]
[357837914,1744463439990,-151.0,0.00022989,7]
[357837916,1744463440001,-151.0,0.00022989,7]
[357837918,1744463440011,-305.537431,0.00022989,7]
[357837920,1744463440020,-305.537431,0.00022989,7]
[357837922,1744463440030,-305.537431,0.00022989,7]
[357837924,1744463440040,-305.537431,0.00022989,7]
[357837926,1744463440050,-305.537431,0.00022989,7]
[357837928,1744463440059,-305.537431,0.00022989,7]
[357837930,1744463440069,-305.537431,0.00022989,7]
[357837932,1744463440080,-305.537431,0.00022989,7]
[357837934,1744463440090,-305.537431,0.00022989,7]
[357837936,1744463440101,-305.537431,0.00022989,7]
[357837938,1744463440111,-305.537431,0.00022989,7]
[357837940,1744463440123,-305.537431,0.00022989,7]
[357837942,1744463440133,-305.537431,0.00022989,7]
[357837944,1744463440144,-305.537431,0.00022989,7]
[357837946,1744463440154,-305.537431,0.00022989,7]
[357837948,1744463440164,-305.537431,0.00022989,7]
[357837950,1744463440174,-305.537431,0.00022989,7]
[357837952,1744463440185,-305.537431,0.00022989,7]
[357837954,1744463440195,-305.537431,0.00022989,7]
[357837956,1744463440207,-305.537427,0.00022989,7]
[357837958,1744463440217,-89643.76012695,0.0002299,2]
[357837963,1744463440259,-7848.14659301,0.0002299,2]
[357837965,1744463440271,-2508.09328004,0.0002299,2]
[357837967,1744463440281,-151.0,0.00023,8]
[357837970,1744463440291,-151.0,0.00023,9]
[357837971,1744463440302,-160.0,0.00023,3]
[357837973,1744463440315,-420.0,0.00023332,2]
[357837975,1744463440325,-4423.10355077,0.00023486,4]
[357837977,1744463440335,-1000.0,0.000238,2]
[357837980,1744463440346,-151.0,0.00023954,2]
[357837982,1744463440357,-1792.985216,0.00023968,7]
[357837984,1744463440367,-1792.985216,0.00023968,7]
[357837986,1744463440377,-1792.985216,0.00023968,7]
[357837988,1744463440389,-1792.985216,0.00023968,7]
[357837989,1744463440399,-1792.985216,0.00023968,7]
[357837991,1744463440409,-1792.985216,0.00023968,7]
[357837993,1744463440419,-1792.985216,0.00023968,7]
[357837995,1744463440429,-1792.985216,0.00023968,7]
[357837997,1744463440438,-1792.985216,0.00023968,7]
[357837999,1744463440448,-1014.95482638,0.00023968,7]
[357838308,1744463443329,-778.03038962,0.00023968,7]
[357838310,1744463443338,-1792.985216,0.00023968,7]
[357838312,1744463443348,-1544.93438138,0.00023968,7]
[357838588,1744463446351,-248.05083462,0.00023968,7]
[357838590,1744463446361,-1792.985216,0.00023968,7]
[357838592,1744463446370,-1792.985216,0.00023968,7]
[357838594,1744463446379,-220.3584683,0.00023968,7]
[357839042,1744463522682,-199.29166671,0.00022886,2]
[357839043,1744463527498,200.0,0.0002637,16]
[357839044,1744463538263,5001.0,0.00028,10]
[357839045,1744463635363,153.35,0.000269,31]
[357839050,1744464237908,153.35,0.000269,31]
[357839051,1744464323507,-159.26751281,0.00020954,2]
[357839052,1744464326331,261.0,0.00028,10]
[357839053,1744464356548,-250.0,0.00020954,2]
[357839055,1744464362540,-17.05685319,0.00020954,2]
[357839056,1744464362564,-154.14129286,0.0002099,2]
[357839405,1744464509909,-207.9620035,0.00020218,2]
[357839407,1744464527084,-191.72352887,0.000175,4]
[357839408,1744464542695,-150.23979297,0.000175,4]
[357839413,1744464628013,-183.8779309,0.000175,4]
[357839446,1744464632376,-1191.69374284,0.000175,4]
[357839449,1744464632387,-531.9034829,0.00019985,2]
[357839451,1744464632397,-858.9904765,0.00020218,2]
[357839453,1744464632407,-1442.04193817,0.00020888,2]
[357839455,1744464632416,-500.0,0.00020973,2]
[357839457,1744464632426,-500.0,0.00020973,2]
[357839459,1744464632435,-500.0,0.00020973,2]
[357839461,1744464632445,-500.0,0.00020973,2]
[357839464,1744464632461,-500.0,0.00020973,2]
[357839466,1744464632471,-500.0,0.00020973,2]
[357839468,1744464632482,-727.72,0.00020978,3]
[357839470,1744464632492,-300.0,0.00020987,2]
[357839472,1744464632503,-50000.0,0.00020988,2]
[357839474,1744464632514,-585.90735495,0.00020988,2]
[357839476,1744464632525,-171.54399022,0.00020988,2]
[357839478,1744464632535,-500.0,0.00020988,2]
[357839481,1744464632545,-500.0,0.00020988,2]
[357839483,1744464632556,-500.0,0.00020988,2]
[357839485,1744464632566,-1096.51901759,0.00020988,2]
[357839487,1744464632577,-500.0,0.00020988,2]
[357839489,1744464632587,-500.0,0.00020988,2]
[357839491,1744464632598,-1096.51901759,0.00020988,2]
[357839494,1744464632608,-500.0,0.00020988,2]
[357839496,1744464632618,-476.55538716,0.00020988,2]
[357839498,1744464632629,-1096.51901759,0.00020988,2]
[357839500,1744464632639,-500.0,0.00020988,2]
[357839502,1744464632648,-500.0,0.00020988,2]
[357839504,1744464632662,-1096.51901759,0.00020988,2]
[357839506,1744464632672,-381.90808062,0.00020988,2]
[357839508,1744464632682,-1096.51901759,0.00020988,2]
[357839510,1744464632692,-1096.51901759,0.00020988,2]
[357839512,1744464632705,-500.0,0.00020988,2]
[357839514,1744464632716,-1096.51901759,0.00020988,2]
[357839516,1744464632726,-500.0,0.00020988,2]
[357839518,1744464632738,-1096.51901759,0.00020988,2]
[357839521,1744464632748,-1096.51901759,0.00020988,2]
[357839523,1744464632758,-1096.51901759,0.00020988,2]
[357839525,1744464632769,-1096.51901759,0.00020988,2]
[357839527,1744464632780,-1096.51901759,0.00020988,2]
[357839529,1744464632790,-1096.51901759,0.00020988,2]
[357839531,1744464632801,-1096.51901759,0.00020988,2]
[357839533,1744464632811,-1096.51901759,0.00020988,2]
[357839535,1744464632821,-1096.51901759,0.00020988,2]
[357839537,1744464632831,-1096.51901759,0.00020988,2]
[357839539,1744464632842,-1096.51901759,0.00020988,2]
[357839541,1744464632852,-1096.51901759,0.00020988,2]
[357839544,1744464632863,-1096.51901759,0.00020988,2]
[357839546,1744464632873,-1096.51901759,0.00020988,2]
[357839548,1744464632883,-1096.51901759,0.00020988,2]
[357839550,1744464632894,-1096.51901759,0.00020988,2]
[357839552,1744464632904,-1096.51901759,0.00020988,2]
[357839554,1744464632915,-1096.51901759,0.00020988,2]
[357839556,1744464632925,-1096.51901759,0.00020988,2]
[357839558,1744464632936,-1096.51901759,0.00020988,2]
[357839560,1744464632946,-1096.51901759,0.00020988,2]
[357839562,1744464632957,-1096.51901759,0.00020988,2]
[357839564,1744464632967,-1096.51901759,0.00020988,2]
[357839566,1744464632977,-1096.51901759,0.00020988,2]
[357839568,1744464632987,-1096.51901759,0.00020988,2]
[357839570,1744464632997,-293.18142674,0.00020988,2]
[357839600,1744464633494,-803.33759085,0.00020988,2]
[357839602,1744464633506,-225.71827623,0.00020988,2]
[357839604,1744464633520,-870.80074136,0.00020988,2]
[357839606,1744464633531,-1096.51901759,0.00020988,2]
[357839608,1744464633542,-1096.51901759,0.00020988,2]
[357839611,1744464633553,-1096.51901759,0.00020988,2]
[357839613,1744464633563,-1096.51901759,0.00020988,2]
[357839615,1744464633573,-1096.51901759,0.00020988,2]
[357839617,1744464633583,-1096.51901759,0.00020988,2]
[357839619,1744464633593,-1096.51901759,0.00020988,2]
[357839621,1744464633603,-12352.2682874,0.00020988,2]
[357839623,1744464633613,-12352.2682874,0.00020988,2]
[357839625,1744464633623,-12352.2682874,0.00020988,2]
[357839627,1744464633633,-12352.2682874,0.00020988,2]
[357839629,1744464633643,-12352.2682874,0.00020988,2]
[357839631,1744464633655,-12352.2682874,0.00020988,2]
[357839633,1744464633668,-12352.2682874,0.00020988,2]
[357839635,1744464633678,-12352.2682874,0.00020988,2]
[357839637,1744464633690,-12352.2682874,0.00020988,2]
[357839639,1744464633700,-12352.2682874,0.00020988,2]
[357839641,1744464633711,-12352.2682874,0.00020988,2]
[357839643,1744464633721,-12352.2682874,0.00020988,2]
[357839645,1744464633731,-12352.2682874,0.00020988,2]
[357839647,1744464633743,-12352.2682874,0.00020988,2]
[357839649,1744464633756,-12352.2682874,0.00020988,2]
[357839651,1744464633766,-12352.2682874,0.00020988,2]
[357839653,1744464633777,-12352.2682874,0.00020988,2]
[357839655,1744464633787,-12352.2682874,0.00020988,2]
[357839657,1744464633797,-12352.2682874,0.00020988,2]
[357839659,1744464633807,-2159.36580691,0.00020988,2]
[357839662,1744464633821,-10192.90248049,0.00020988,2]
[357839664,1744464633831,-12352.2682874,0.00020988,2]
[357839666,1744464633841,-12352.2682874,0.00020988,2]
[357839668,1744464633852,-12352.2682874,0.00020988,2]
[357839670,1744464633862,-12352.2682874,0.00020988,2]
[357839672,1744464633873,-12352.2682874,0.00020988,2]
[357839674,1744464633883,-12352.2682874,0.00020988,2]
[357839676,1744464633896,-12352.2682874,0.00020988,2]
[357839678,1744464633907,-12352.2682874,0.00020988,2]
[357839680,1744464633918,-12997.33118684,0.00020988,2]
[357839682,1744464633929,-12997.33118684,0.00020988,2]
[357839684,1744464633939,-12997.33118684,0.00020988,2]
[357839686,1744464633950,-12997.33118684,0.00020988,2]
[357839688,1744464633960,-12997.33118684,0.00020988,2]
[357839691,1744464633971,-12997.33118684,0.00020988,2]
[357839693,1744464633981,-12997.33118684,0.00020988,2]
[357839695,1744464633991,-12997.33118684,0.00020988,2]
[357839697,1744464634003,-12997.33118684,0.00020988,2]
[357839699,1744464634014,-12997.33118684,0.00020988,2]
[357839701,1744464634024,-12997.33118684,0.00020988,2]
[357839703,1744464634034,-12997.33118684,0.00020988,2]
[357839705,1744464634045,-12997.33118684,0.00020988,2]
[357839707,1744464634057,-12997.33118684,0.00020988,2]
[357839709,1744464634068,-12997.33118684,0.00020988,2]
[357839711,1744464634078,-12997.33118684,0.00020988,2]
[357839713,1744464634087,-12997.33118684,0.00020988,2]
[357839715,1744464634097,-795.30269245,0.00020988,2]
[357839717,1744464634106,-151.0,0.00020989,2]
[357839719,1744464634116,-151.0,0.00020989,2]
[357839721,1744464634125,-151.0,0.00020989,2]
[357839723,1744464634135,-99845.85870714,0.0002099,2]
[357839725,1744464634144,-151.0,0.0002099,2]
[357839727,1744464634154,-500.0,0.00021566,2]
[357839729,1744464634164,-421.82040366,0.00021566,2]
[357839732,1744464634174,-485.99970284,0.00021741,2]
[357839734,1744464634184,-19286.03577577,0.00021873,2]
[357839736,1744464634194,-23463.4938153,0.00021874,2]
[357839738,1744464634204,-159.1704455,0.00021874,2]
[357839740,1744464634214,-500.0,0.00021973,2]
[357839742,1744464634224,-500.0,0.00021973,2]
[357839744,1744464634234,-500.0,0.00021973,2]
[357839746,1744464634243,-151.0,0.00021973,7]
[357839748,1744464634256,-151.0,0.00021976,2]
[357839750,1744464634266,-400.0,0.00021976,2]
[357839754,1744464634290,-702.516934,0.00021989,7]
[357839756,1744464634302,-702.516934,0.00021989,7]
[357839758,1744464634312,-702.516934,0.00021989,7]
[357839760,1744464634322,-702.516934,0.00021989,7]
[357839762,1744464634333,-702.516934,0.00021989,7]
[357839764,1744464634345,-702.516934,0.00021989,7]
[357839766,1744464634356,-702.516934,0.0002199,7]
[357839768,1744464634368,-702.516934,0.0002199,7]
[357839770,1744464634378,-4325.94482565,0.000221,3]
[357839772,1744464634388,-4325.94482548,0.000221,3]
[357839775,1744464634398,-4325.94482548,0.0002221,3]
[357839777,1744464634409,-267.081938,0.00022783,3]
[357839779,1744464634419,-420.0,0.00022829,2]
[357839781,1744464634430,-4325.94482548,0.00022866,4]
[357839783,1744464634441,-197.22378478,0.00022869,2]
[357839785,1744464634451,-151.0,0.00022869,2]
[357839787,1744464634462,-151.0,0.00022869,2]
[357839789,1744464634472,-151.0,0.00022869,2]
[357839791,1744464634481,-167.78744943,0.00022869,2]
[357839793,1744464634492,-637.80866703,0.00022873,2]
[357839795,1744464634504,-500.0,0.00022873,2]
[357839797,1744464634515,-787.578012,0.00022881,7]
[357839799,1744464634525,-787.578012,0.00022881,7]
[357839801,1744464634535,-787.578012,0.00022881,7]
[357839803,1744464634546,-787.578012,0.00022881,7]
[357839805,1744464634556,-787.578012,0.00022881,7]
[357839807,1744464634566,-787.578012,0.00022881,7]
[357839810,1744464634575,-151.789691,0.00022882,7]
[357839811,1744464634585,-151.0,0.00022882,7]
[357839814,1744464634595,-254.987443,0.00022882,7]
[357839816,1744464634606,-254.987443,0.00022882,7]
[357839818,1744464634616,-254.987443,0.00022882,7]
[357839820,1744464634626,-254.987443,0.00022882,7]
[357839822,1744464634636,-254.987443,0.00022882,7]
[357839824,1744464634647,-254.987443,0.00022882,7]
[357839826,1744464634659,-254.987443,0.00022882,7]
[357839828,1744464634670,-254.987443,0.00022882,7]
[357839830,1744464634680,-237.7236,0.00022882,7]
[357839832,1744464634690,-237.7236,0.00022882,7]
[357839835,1744464634700,-237.7236,0.00022882,7]
[357839837,1744464634711,-237.7236,0.00022882,7]
[357839839,1744464634721,-237.7236,0.00022882,7]
[357839841,1744464634733,-237.7236,0.00022882,7]
[357839843,1744464634744,-185.339986,0.00022883,7]
[357839844,1744464634755,-185.339986,0.00022883,7]
[357839847,1744464634765,-185.339986,0.00022883,7]
[357839849,1744464634775,-185.339986,0.00022883,7]
[357839851,1744464634785,-185.339986,0.00022883,7]
[357839853,1744464634795,-185.339986,0.00022883,7]
[357839855,1744464634805,-151.0,0.00022884,7]
[357839857,1744464634815,-151.0,0.00022884,7]
[357839859,1744464634825,-156.52171,0.00022884,7]
[357839861,1744464634834,-153.105098,0.00022884,7]
[357839863,1744464634844,-151.0,0.00022884,7]
[357839865,1744464634854,-151.0,0.00022884,7]
[357839867,1744464634864,-246.40491,0.00022884,7]
[357839869,1744464634874,-787.578012,0.00022884,7]
[357839871,1744464634884,-787.578012,0.00022884,7]
[357839874,1744464634900,-1000.0,0.00022884,2]
[357839876,1744464634911,-1000.0,0.00022884,2]
[357839878,1744464634921,-1000.0,0.00022884,2]
[357839880,1744464634930,-1000.0,0.00022884,2]
[357839882,1744464634941,-1000.0,0.00022884,2]
[357839884,1744464634951,-1000.0,0.00022884,2]
[357839886,1744464634961,-1000.0,0.00022884,2]
[357839888,1744464634971,-1000.0,0.00022884,2]
[357839890,1744464634982,-1000.0,0.00022884,2]
[357839893,1744464634992,-1000.0,0.00022884,2]
[357839895,1744464635002,-1000.0,0.00022884,2]
[357839897,1744464635013,-1000.0,0.00022884,2]
[357839899,1744464635023,-1000.0,0.00022884,2]
[357839901,1744464635034,-1119.94142856,0.00022884,2]
[357839903,1744464635044,-215.924982,0.00022885,7]
[357839905,1744464635055,-151.0,0.00022885,2]
[357839907,1744464635065,-151.0,0.00022885,2]
[357839909,1744464635075,-151.0,0.00022885,2]
[357839911,1744464635085,-151.0,0.00022885,2]
[357839951,1744464635444,-151.0,0.00022885,2]
[357839953,1744464635455,-151.0,0.00022885,2]
[357839955,1744464635466,-151.0,0.00022885,7]
[357839957,1744464635477,-151.0,0.00022885,7]
[357839960,1744464635487,-153.339089,0.00022885,7]
[357839962,1744464635497,-151.0,0.00022885,7]
[357839964,1744464635510,-151.0,0.00022885,7]
[357839966,1744464635520,-151.0,0.00022885,7]
[357839968,1744464635531,-151.0,0.00022885,7]
[357839970,1744464635542,-151.0,0.00022885,7]
[357839972,1744464635552,-151.0,0.00022885,7]
[357839974,1744464635562,-151.0,0.00022885,7]
[357839976,1744464635573,-151.0,0.00022885,7]
[357839978,1744464635584,-151.0,0.00022885,7]
[357839980,1744464635594,-237.7236,0.00022885,7]
[357839982,1744464635604,-237.7236,0.00022885,7]
[357839984,1744464635614,-151.0,0.00022886,7]
[357839986,1744464635625,-151.0,0.00022886,7]
[357839988,1744464635635,-151.0,0.00022886,7]
[357839990,1744464635645,-510.641046,0.00022886,7]
[357839992,1744464635656,-510.641046,0.00022886,7]
[357839994,1744464635673,-510.641046,0.00022886,7]
[357839996,1744464635683,-510.641046,0.00022886,7]
[357839998,1744464635692,-510.641046,0.00022886,7]
[357840000,1744464635704,-510.641046,0.00022886,7]
[357840003,1744464635714,-151.0,0.00022886,7]
[357840005,1744464635724,-151.0,0.00022886,7]
[357840007,1744464635734,-151.0,0.00022886,7]
[357840009,1744464635744,-151.0,0.00022886,7]
[357840011,1744464635754,-151.0,0.00022886,7]
[357840013,1744464635766,-151.0,0.00022886,7]
[357840015,1744464635776,-151.0,0.00022985,7]
[357840017,1744464635786,-151.0,0.00022985,7]
[357840019,1744464635796,-151.0,0.00022985,7]
[357840021,1744464635805,-151.0,0.00022985,7]
[357840023,1744464635816,-151.0,0.00022985,7]
[357840025,1744464635825,-245.0,0.00022985,7]
[357840027,1744464635836,-154.890574,0.00022985,7]
[357840029,1744464635846,-151.0,0.00022985,7]
[357840031,1744464635856,-151.0,0.00022985,7]
[357840033,1744464635866,-151.0,0.00022985,7]
[357840035,1744464635876,-151.0,0.00022985,7]
[357840037,1744464635887,-151.0,0.00022985,7]
[357840039,1744464635903,-151.0,0.00022985,7]
[357840041,1744464635923,-151.0,0.00022985,7]
[357840043,1744464635938,-151.0,0.00022985,7]
[357840045,1744464635949,-151.0,0.00022985,7]
[357840047,1744464635959,-151.0,0.00022985,2]
[357840049,1744464635969,-269.796102,0.00022985,2]
[357840051,1744464635979,-151.0,0.00022985,7]
[357840053,1744464635990,-151.0,0.00022985,7]
[357840055,1744464636000,-151.0,0.00022985,7]
[357840057,1744464636011,-702.516934,0.00022986,7]
[357840060,1744464636021,-702.516934,0.00022986,7]
[357840062,1744464636031,-254.987443,0.0002299,7]
[357840064,1744464636042,-254.987443,0.0002299,7]
[357840066,1744464636052,-151.0,0.00023345,2]
[357840067,1744464636063,-4325.94482548,0.00023521,4]
[357840068,1744464636073,-467.89339419,0.00023652,2]
[357840069,1744464636083,-190.36161681,0.000237,2]
[357840070,1744464636093,-151.0,0.00023968,7]
[357840071,1744464636104,-151.0,0.00023968,7]
[357840072,1744464636114,-151.0,0.00023968,7]
[357840073,1744464636124,-151.0,0.00023968,7]
[357840074,1744464636135,-151.0,0.00023968,7]
[357840075,1744464636144,-151.0,0.00023968,7]
[357840076,1744464636155,-151.0,0.00023968,7]
[357840077,1744464636164,-151.0,0.00023968,7]
[357840078,1744464636174,-151.0,0.00023968,7]
[357840079,1744464636183,-151.0,0.00023968,7]
[357840080,1744464636193,-151.0,0.00023968,7]
[357840081,1744464636203,-151.0,0.00023968,7]
[357840082,1744464636212,-288.0,0.00023968,7]
[357840083,1744464636222,-151.0,0.00023969,7]
[357840084,1744464636232,-151.0,0.00023969,7]
[357840085,1744464636241,-151.0,0.00023969,7]
[357840086,1744464636251,-209.834992,0.00023969,7]
[357840087,1744464636263,-198.685326,0.0002397,7]
[357840088,1744464636275,-198.685326,0.0002397,7]
[357840089,1744464636285,-198.685326,0.0002397,7]
[357840090,1744464636295,-198.685326,0.0002397,7]
[357840091,1744464636304,-198.685326,0.0002397,7]
[357840092,1744464636314,-198.685326,0.0002397,7]
[357840093,1744464636323,-198.685326,0.0002397,7]
[357840094,1744464636333,-198.685326,0.0002397,7]
[357840095,1744464636351,-198.685326,0.0002397,7]
[357840096,1744464636366,-198.685326,0.0002397,7]
[357840097,1744464636376,-198.685326,0.0002397,7]
[357840099,1744464636387,-198.685326,0.0002397,7]
[357840100,1744464636396,-198.685326,0.0002397,7]
[357840102,1744464636405,-198.685326,0.0002397,7]
[357840104,1744464636415,-198.685326,0.0002397,7]
[357840106,1744464636426,-198.685326,0.0002397,7]
[357840108,1744464636437,-198.685326,0.0002397,7]
[357840110,1744464636448,-198.685326,0.0002397,7]
[357840113,1744464636458,-198.685326,0.0002397,7]
[357840115,1744464636468,-198.685329,0.0002397,7]
[357840117,1744464636479,-178.575702,0.00023971,7]
[357840119,1744464636489,-178.575702,0.00023971,7]
[357840121,1744464636500,-178.575702,0.00023971,7]
[357840123,1744464636511,-178.575702,0.00023971,7]
[357840125,1744464636522,-178.575702,0.00023972,7]
[357840127,1744464636532,-178.575702,0.00023972,7]
[357840130,1744464636543,-500.0,0.00023974,2]
[357840132,1744464636553,-178.575702,0.00023976,7]
[357840134,1744464636564,-178.575702,0.00023976,7]
[357840136,1744464636574,-176.38753068,0.00023978,2]
[357840138,1744464636584,-183.59004579,0.00023978,2]
[357840140,1744464636594,-183.48118923,0.00023978,2]
[357840142,1744464636604,-178.575702,0.0002399,7]
[357840144,1744464636615,-178.575702,0.0002399,7]
[357840146,1744464636625,-160.0,0.00024,7]
[357840148,1744464636638,-185.339986,0.00024072,7]
[357840151,1744464636649,-185.339986,0.00024072,7]
[357840153,1744464636661,-500.0,0.00024085,2]
[357840155,1744464636673,-500.0,0.00024085,2]
[357840157,1744464636683,-500.0,0.00024085,2]
[357840159,1744464636694,-519.07431454,0.00024085,2]
[357840161,1744464636705,-500.0,0.00024085,2]
[357840163,1744464636715,-269.22912984,0.00024085,2]
[357840165,1744464636727,-500.0,0.00024085,2]
[357840167,1744464636742,-500.0,0.00024085,2]
[357840169,1744464636759,-500.33448939,0.00024085,2]
[357840171,1744464636772,-502.44668118,0.00024085,2]
[357840173,1744464636783,-501.29448644,0.00024085,2]
[357840175,1744464636793,-500.0,0.00024085,2]
[357840177,1744464636803,-65.2540128,0.00024085,2]
[357840373,1744464638678,-701.44499399,0.00023604,2]
[357840376,1744464638692,-740.59694414,0.00023604,2]
[357840378,1744464638703,-434.7459872,0.00024085,2]
[357840380,1744464638714,-500.0,0.00024085,2]
[357840382,1744464638725,-616.34580096,0.00024085,2]
[357840384,1744464638737,-500.0,0.00024085,2]
[357840387,1744464638748,-500.0,0.00024085,2]
[357840389,1744464638758,-4325.94482548,0.00024176,5]
[357840391,1744464638768,-500.0,0.00024178,2]
[357840393,1744464638778,-152.463612,0.00024383,7]
[357840395,1744464638789,-160.0,0.00024579,2]
[357840397,1744464638799,-160.0,0.00024579,2]
[357840398,1744464638810,-4363.19787167,0.0002458,2]
[357840399,1744464638823,-308.75312418,0.0002458,2]
[357840400,1744464638834,-32747.4361222,0.00024651,2]
[357840401,1744464638845,-353.032187,0.00024696,2]
[357840402,1744464638855,-353.032187,0.00024696,2]
[357840403,1744464638866,-20375.33050823,0.000248,2]
[357840623,1744464640958,-0.00796333,0.00024696,7]
[357840626,1744464640972,-150.99203667,0.00024696,7]
[357840628,1744464640982,-5361.02129817,0.000248,2]
[357840630,1744464640992,-4325.94482548,0.00024831,5]
[357840632,1744464641002,-335.9179337,0.00024873,2]
[357840634,1744464641013,-500.0,0.00024873,2]
[357840636,1744464641023,-500.0,0.00024873,2]
[357840638,1744464641034,-500.0,0.00024873,2]
[357840640,1744464641044,-500.0,0.00024873,2]
[357840642,1744464641054,-500.0,0.00024873,2]
[357840645,1744464641064,-268.59227821,0.00024873,2]
[357840647,1744464641075,-787.578012,0.0002489,7]
[357840649,1744464641086,-787.578012,0.0002489,7]
[357840651,1744464641097,-237.7236,0.0002489,7]
[357840653,1744464641108,-237.7236,0.0002489,7]
[357840655,1744464641118,-178.575702,0.000249,7]
[357840657,1744464641129,-178.575702,0.000249,7]
[357840660,1744464641140,-151.0,0.000249,7]
[357840662,1744464641151,-510.641046,0.000249,7]
[357840664,1744464641162,-510.641046,0.000249,7]
[357840666,1744464641172,-151.0,0.000249,7]
[357840668,1744464641182,-151.0,0.000249,2]
[357840670,1744464641192,-151.0,0.000249,7]
[357840672,1744464641204,-151.0,0.000249,7]
[357840674,1744464641214,-276.728958,0.000249,7]
[357840676,1744464641225,-702.516934,0.000249,7]
[357840679,1744464641236,-702.516934,0.000249,7]
[357840681,1744464641246,-87.87341725,0.000249,2]
[357840752,1744464642857,-151.0,0.000249,7]
[357840753,1744464642885,-56.72701053,0.0002673,7]
[357841170,1744464647478,-69643.76520502,0.000249,2]
[357841678,1744464663174,-164.06170969,0.00020988,2]
[357841679,1744464663202,-135.93829031,0.00020988,2]
[357841697,1744464675288,-151.0,0.00020987,2]
[357841698,1744464678207,-192.70139468,0.00020987,2]
[357841699,1744464723879,-151.06293082,0.00020986,2]
[357841700,1744464726798,200.0,0.000267,17]
[357841701,1744464840993,153.36,0.000269,31]
[357841703,1744465192943,500.0,0.000265,14]
[357841704,1744465221197,-159.3633804,0.00019982,2]
[357841705,1744465233160,-200.0,0.00019982,2]
[357841706,1744465247219,-181.10157079,0.00020971,3]
[357841707,1744465263080,-71.1349908,0.00019982,2]
[357841708,1744465263106,-93.8485103,0.00020702,2]
[357841709,1744465266708,-73.541397,0.00020702,2]